bitfinex/quotes_ETHUSD_20250625
["timestamp","ask_amount","ask_price","bid_price","bid_amount"]
[1750822264140,13.30222875,2457.8,2457.5,4.06914296]
[1750822264343,10.7522,2457.8,2457.5,4.06908137]
[1750822264535,5.77308427,2458.2,2457.5,0.7637]
[1750822264536,0.7953,2458.2,2457.5,0.7637]
[1750822264738,10.0,2458.1,2457.7,4.06876569]
[1750822266548,16.611,2458.1,2457.7,4.06876569]
[1750822266937,16.611,2458.1,2457.8,4.06865612]
[1750822267450,16.611,2458.1,2457.7,4.06875311]
[1750822267849,16.611,2458.1,2457.8,4.06867076]
[1750822268345,16.611,2458.1,2457.7,4.06874946]
[1750822268848,16.611,2458.1,2457.8,4.06865803]
[1750822269755,20.67925169,2458.1,2457.6,4.06894103]
[1750822270560,20.67925169,2458.1,2457.7,4.06881326]
[1750822270749,16.611,2458.1,2457.7,4.06881326]
[1750822271059,16.611,2458.1,2457.8,4.06867569]
[1750822272825,10.0,2458.1,2457.7,4.06877094]
[1750822273027,10.67918943,2458.1,2457.6,4.06899582]
[1750822273258,4.06836426,2458.0,2457.6,4.06899582]
[1750822273558,12.23353103,2458.1,2457.6,4.06899582]
[1750822274457,8.16525592,2458.1,2457.6,4.06899582]
[1750822274638,0.7708,2457.9,2457.5,4.06910288]
[1750822274844,0.7708,2457.9,2457.6,4.06899167]
[1750822275269,0.7708,2457.9,2457.5,4.0691025]
[1750822275431,0.7708,2457.9,2457.4,4.06927461]
[1750822275432,4.83937022,2457.9,2457.4,4.06917746]
[1750822275633,6.611,2457.8,2457.5,4.06914587]
[1750822275846,6.611,2457.8,2457.6,4.06892961]
[1750822276328,6.611,2457.8,2457.7,4.06884485]
[1750822276571,7.3808,2457.9,2457.7,4.06884485]
[1750822276769,6.61,2457.9,2457.7,4.06884485]
[1750822277131,6.61,2458.0,2457.8,4.06866386]
[1750822277333,6.61,2458.0,2457.9,4.06847598]
[1750822277553,0.8231,2458.1,2457.8,4.06858501]
[1750822279537,0.8231,2458.1,2457.9,4.06850115]
[1750822279754,16.61,2458.2,2457.9,4.06850115]
[1750822280068,6.61,2458.2,2458.0,4.06829635]
[1750822280566,0.7789,2458.3,2458.0,4.06829635]
[1750822280871,10.7789,2458.3,2458.0,4.06823391]
[1750822281239,0.7789,2458.3,2457.9,4.89050016]
[1750822281564,0.7789,2458.3,2458.0,4.06825452]
[1750822281770,10.7789,2458.3,2457.9,4.89042312]
[1750822281943,10.7789,2458.3,2457.9,4.06842312]
[1750822283739,14.84677273,2458.3,2457.8,4.06859049]
[1750822284136,10.7789,2458.3,2457.9,4.06850304]
[1750822284341,10.7789,2458.3,2457.9,4.0684314]
[1750822284950,10.7789,2458.3,2457.7,0.7897]
[1750822285267,10.7789,2458.3,2458.1,4.06815649]
[1750822285971,10.7789,2458.3,2458.0,4.06825583]
[1750822289376,10.7789,2458.3,2458.1,4.06818114]
[1750822290082,0.7884,2458.5,2457.7,0.7897]
[1750822290379,10.0,2458.3,2458.1,4.06804405]
[1750822290579,10.0,2458.3,2458.0,4.06827115]
[1750822291758,10.0,2458.3,2458.1,4.06817704]
[1750822292250,10.0,2458.3,2457.9,4.06844974]
[1750822292251,10.0,2458.3,2458.0,4.06827682]
[1750822295086,10.0,2458.3,2457.7,0.7897]
[1750822295087,10.0,2458.3,2457.8,4.06865112]
[1750822295294,10.0,2458.3,2458.0,4.06834408]
[1750822298692,10.0,2458.3,2458.1,4.06808916]
[1750822300093,10.0,2458.3,2458.2,4.06801724]
[1750822300907,10.0,2458.3,2458.1,4.06809728]
[1750822301192,0.7884,2458.5,2458.1,4.06809728]
[1750822301394,10.7884,2458.5,2458.1,4.06809728]
[1750822301587,10.0,2458.4,2458.1,4.06809728]
[1750822302865,17.3964,2458.5,2458.1,4.06809728]
[1750822303775,7.3964,2458.5,2458.2,4.06791973]
[1750822304559,0.7884,2458.5,2458.2,4.06791973]
[1750822304777,7.3964,2458.5,2458.3,4.0678352]
[1750822305599,7.3964,2458.5,2458.2,4.06792759]
[1750822306309,0.7876,2458.7,2458.2,4.06801724]
[1750822306513,7.78,2458.9,2458.0,0.7645]
[1750822306514,7.78,2458.9,2458.3,1.17130172]
[1750822306689,7.3946,2459.1,2458.7,4.06708222]
[1750822307009,10.0,2459.0,2458.7,4.06708222]
[1750822307990,14.33687096,2459.3,2458.8,4.06701896]
[1750822308221,8.5676,2459.3,2459.0,4.06668501]
[1750822308516,0.7656,2459.5,2458.7,0.7645]
[1750822308677,4.0661149,2459.4,2458.9,4.06675572]
[1750822308883,10.0,2459.3,2458.9,4.06675572]
[1750822312501,10.0,2459.3,2459.0,4.06668181]
[1750822314590,10.0,2459.3,2459.0,4.06667431]
[1750822314824,10.0,2459.3,2459.1,4.06641929]
[1750822315038,10.0,2459.3,2459.0,4.85912336]
[1750822316254,7.3726,2459.5,2459.0,4.85912336]
[1750822316440,10.0,2459.4,2459.1,4.06650256]
[1750822316642,0.7656,2459.5,2459.1,4.06650256]
[1750822316945,17.3706,2459.5,2459.1,4.06650256]
[1750822317745,10.7656,2459.5,2459.1,4.06650256]
[1750822319556,0.7594,2459.7,2459.1,4.06651063]
[1750822319731,10.0,2459.5,2459.2,4.06627426]
[1750822320252,4.82494445,2459.7,2459.2,4.06627426]
[1750822320460,10.0,2459.5,2459.2,4.06627426]
[1750822321565,0.7594,2459.7,2459.4,4.06595893]
[1750822322057,10.0,2459.8,2459.5,4.06585794]
[1750822322233,16.604,2459.8,2459.4,4.0659466]
[1750822323481,8.5394,2459.9,2459.3,0.7762]
[1750822323638,14.384,2459.9,2459.6,4.06562674]
[1750822323846,10.0,2459.8,2459.6,4.06562674]
[1750822324261,10.0,2459.8,2459.7,4.06553644]
[1750822324464,7.78,2459.9,2459.7,4.06553644]
[1750822324759,10.0,2460.2,2459.7,5.69057711]
[1750822324949,16.603,2460.2,2459.7,5.69062014]
[1750822325266,2.5235,2460.3,2459.7,1.62513489]
[1750822325267,0.8215,2460.3,2459.7,1.62513489]
[1750822325433,7.4245,2460.3,2459.8,0.5690771]
[1750822325634,17.4245,2460.3,2459.8,4.06522539]
[1750822325856,17.4245,2460.3,2459.9,4.06519102]
[1750822326567,11.48906717,2460.3,2459.8,4.06527887]
[1750822326736,21.48906717,2460.3,2459.8,4.06527887]
[1750822327275,4.06471937,2460.2,2459.7,4.06539528]
[1750822327682,4.81966353,2460.1,2459.6,4.06566266]
[1750822329152,0.7547,2460.1,2459.6,0.7989]
[1750822329376,7.3577,2460.3,2459.8,4.06522944]
[1750822329579,7.3577,2460.3,2459.9,4.06520011]
[1750822329784,0.7547,2460.3,2460.0,4.06503657]
[1750822329993,7.3567,2460.3,2460.0,4.06503657]
[1750822330394,11.42126284,2460.3,2459.7,4.06548963]
[1750822330690,10.0,2460.1,2459.7,4.06539209]
[1750822330865,10.0,2460.2,2459.7,4.06551661]
[1750822331067,10.0,2460.2,2459.9,4.06506878]
[1750822331463,10.0,2460.2,2459.8,4.06528795]
[1750822331861,10.0,2460.2,2459.9,4.06519345]
[1750822332065,10.0,2460.2,2460.0,4.06501095]
[1750822332568,0.7547,2460.3,2460.0,4.06501095]
[1750822332769,10.0,2460.2,2459.9,4.06511587]
[1750822332980,10.0,2460.2,2459.9,4.0651964]
[1750822333203,10.0,2460.2,2460.0,4.06496979]
[1750822333562,10.8053,2460.5,2460.0,4.064987]
[1750822333795,10.0,2460.3,2459.9,4.06513441]
[1750822334378,10.0,2460.3,2459.6,4.83037038]
[1750822334578,4.87002355,2460.2,2459.8,4.0653627]
[1750822334799,4.87002355,2460.2,2459.6,4.83037038]
[1750822334800,4.06511166,2460.0,2459.6,0.7647]
[1750822335120,4.06528918,2459.9,2459.4,5.76593039]
[1750822335324,0.8053,2460.0,2459.6,4.06569157]
[1750822335999,7.4063,2460.0,2459.6,4.06569157]
[1750822337432,7.4063,2460.0,2459.7,4.06552207]
[1750822339531,7.4063,2460.0,2459.6,4.06564801]
[1750822340722,11.47136275,2460.0,2459.5,4.06577654]
[1750822341514,4.06522023,2459.9,2459.5,4.06577654]
[1750822341715,4.06522023,2459.9,2459.1,7.08791923]
[1750822341716,0.787,2459.8,2458.9,2.4804]
[1750822342022,0.787,2459.5,2459.1,4.06648585]
[1750822342195,4.85288457,2459.5,2459.1,4.06648585]
[1750822342395,0.787,2459.5,2459.1,4.06648585]
[1750822342895,0.787,2459.5,2458.9,6.54719554]
[1750822342896,4.85292016,2459.5,2459.0,4.06661833]
[1750822343226,4.85292016,2459.5,2459.1,4.06652201]
[1750822343526,0.787,2459.5,2459.1,4.06652201]
[1750822343893,4.85286941,2459.5,2459.1,4.06652201]
[1750822344624,0.787,2459.5,2459.1,4.06650504]
[1750822345334,0.787,2459.5,2459.2,4.06633274]
[1750822345727,0.787,2459.5,2459.3,4.06617912]
[1750822346050,0.787,2459.5,2459.2,4.06628442]
[1750822346420,0.787,2459.5,2459.1,4.06644624]
[1750822347006,0.787,2459.5,2459.0,2.03758139]
[1750822347209,0.787,2459.5,2459.2,4.06628049]
[1750822349140,0.787,2459.5,2459.1,4.06644246]
[1750822349637,0.787,2459.5,2459.1,4.93088561]
[1750822349839,0.787,2459.5,2459.3,4.06612561]
[1750822350141,6.601,2459.6,2459.3,4.06619769]
[1750822350341,10.66679474,2459.6,2459.1,0.86442374]
[1750822350510,10.66679474,2459.6,2459.1,4.0664259]
[1750822350713,0.8008,2459.5,2459.1,4.0664259]
[1750822350914,0.8008,2459.5,2459.2,4.06635124]
[1750822351647,0.8008,2459.5,2459.3,4.06618734]
[1750822353347,0.8008,2459.5,2459.2,4.06628794]
[1750822356319,0.8008,2459.5,2459.2,4.06635237]
[1750822358429,0.8008,2459.5,2459.3,4.06618353]
[1750822359545,0.8008,2459.5,2459.2,5.16535104]
[1750822364256,4.06610633,2459.4,2458.9,5.76678807]
[1750822364454,14.86672301,2459.5,2459.0,4.0666136]
[1750822364818,14.86672301,2459.5,2457.4,5.29066841]
[1750822364819,4.06637246,2459.2,2458.4,0.7994]
[1750822365148,0.7757,2459.1,2458.7,4.06705975]
[1750822365951,0.7757,2459.1,2458.8,4.06701244]
[1750822366148,0.7757,2459.1,2458.9,4.06683696]
[1750822366747,14.06595497,2459.5,2459.0,4.06669377]
[1750822366930,7.4283,2459.4,2459.0,4.06669377]
[1750822367127,7.4283,2459.4,2459.1,4.06650908]
[1750822368552,0.8283,2459.4,2458.8,0.8281]
[1750822368723,0.8283,2459.4,2459.1,4.0664385]
[1750822369124,0.8283,2459.4,2458.9,4.06680821]
[1750822369125,0.8283,2459.4,2459.0,4.06660819]
[1750822370058,0.8283,2459.4,2459.0,4.06668527]
[1750822370653,4.89433866,2459.4,2459.0,4.06668527]
[1750822371064,0.8283,2459.4,2459.0,4.06668527]
[1750822371425,4.89436124,2459.4,2458.9,4.06676402]
[1750822371723,0.8283,2459.4,2459.0,4.06665526]
[1750822372075,0.8283,2459.4,2458.8,0.8281]
[1750822372231,0.8283,2459.4,2459.1,4.06644119]
[1750822372450,0.8283,2459.4,2459.0,4.06660594]
[1750822373633,0.8045,2458.9,2458.3,0.8292]
[1750822373838,0.8045,2458.7,2458.2,4.06785217]
[1750822374050,4.8717989,2458.7,2458.2,5.1343707]
[1750822374560,0.8045,2458.7,2458.3,4.06783794]
[1750822374981,0.8045,2458.7,2458.2,5.13445045]
[1750822375478,0.8045,2458.7,2458.2,5.1344815]
[1750822375643,0.8045,2458.7,2458.4,4.06765898]
[1750822375845,0.8045,2458.7,2458.3,4.0677834]
[1750822376747,0.8045,2458.7,2458.4,4.06767547]
[1750822378180,0.8045,2458.7,2458.5,4.06751027]
[1750822379182,17.4186,2458.9,2458.5,4.06744708]
[1750822379877,17.4186,2458.9,2458.6,4.06734031]
[1750822380078,7.4186,2458.9,2458.6,4.06734031]
[1750822380885,0.8176,2458.9,2458.7,4.06713814]
[1750822381180,10.0,2459.0,2458.8,4.06694428]
[1750822381350,10.0,2459.0,2458.7,4.06710604]
[1750822382545,10.0,2459.0,2458.8,4.06702323]
[1750822384186,10.0,2459.0,2458.6,4.06728563]
[1750822384351,0.8176,2458.9,2458.3,0.8172]
[1750822384551,0.8176,2458.9,2458.6,4.06734291]
[1750822384763,0.8176,2458.9,2458.5,4.06742904]
[1750822385206,0.8176,2458.9,2458.6,4.06734682]
[1750822385499,0.8176,2458.9,2458.5,4.06744825]
[1750822385986,0.8176,2458.9,2458.6,4.06732791]
[1750822386384,4.88446898,2458.9,2458.4,4.80939473]
[1750822386686,0.7859,2458.7,2458.3,4.06784605]
[1750822387089,4.85316814,2458.7,2458.2,4.06790676]
[1750822387382,4.0673561,2458.6,2458.1,5.76810715]
[1750822387583,4.85316633,2458.7,2458.2,4.06799982]
[1750822387971,0.7859,2458.7,2458.2,4.06801724]
[1750822388173,0.7859,2458.7,2458.3,4.0677637]
[1750822388989,0.7859,2458.7,2458.4,4.06768556]
[1750822389494,0.7859,2458.7,2458.3,4.06776375]
[1750822389796,4.8531002,2458.7,2458.2,4.06792738]
[1750822390092,0.7859,2458.7,2458.3,4.06784272]
[1750822390463,4.06747546,2458.6,2458.1,5.76805837]
[1750822390662,10.66847546,2458.6,2458.1,6.34486421]
[1750822390870,4.06778489,2458.4,2457.9,4.06841829]
[1750822391491,4.0676863,2458.4,2457.9,4.06841829]
[1750822392565,11.45476968,2458.3,2457.8,4.06855322]
[1750822392778,4.06802188,2458.2,2457.7,4.06871042]
[1750822392975,13.00711401,2458.3,2457.6,0.768]
[1750822393179,4.06801998,2458.2,2457.7,4.06884485]
[1750822393679,0.8237,2458.1,2457.7,4.06884485]
[1750822393881,4.89190069,2458.1,2457.7,4.06884485]
[1750822395379,6.601,2458.0,2457.6,4.06891642]
[1750822395769,6.601,2458.0,2457.4,4.06929311]
[1750822395970,0.7939,2457.9,2457.5,4.06909569]
[1750822396367,0.7939,2457.9,2457.6,4.06896959]
[1750822397016,0.7939,2457.9,2457.4,5.13330218]
[1750822397017,0.7939,2457.9,2457.7,4.0688431]
[1750822397175,0.7939,2457.9,2457.8,4.0686793]
[1750822397377,0.7939,2457.9,2457.7,4.0687747]
[1750822399106,0.7939,2457.9,2457.6,4.06892353]
[1750822400384,0.7939,2457.9,2457.7,4.06884286]
[1750822400814,0.7939,2457.9,2457.6,4.068946]
[1750822401209,0.7939,2457.9,2457.7,4.06882729]
[1750822402312,0.7939,2457.9,2457.4,1.89022699]
[1750822402530,0.7939,2457.9,2457.7,4.06873033]
[1750822403033,0.7939,2457.9,2457.6,4.06891291]
[1750822403404,4.06896029,2457.7,2457.3,1.699]
[1750822403934,0.8184,2457.6,2457.3,1.699]
[1750822404132,1.71400396,2457.6,2456.9,11.463]
[1750822404309,4.88749747,2457.6,2457.1,4.06975906]
[1750822404636,4.06917836,2457.5,2457.0,4.06991401]
[1750822405128,0.8184,2457.6,2457.2,4.06966103]
[1750822405300,4.88741842,2457.6,2457.1,4.06975058]
[1750822405711,4.88741842,2457.6,2457.2,4.06966803]
[1750822405911,0.8184,2457.6,2457.2,4.06966803]
[1750822406832,4.88741442,2457.6,2457.2,4.06966803]
[1750822407331,0.8184,2457.6,2457.2,4.06966803]
[1750822407527,4.88746378,2457.6,2457.1,4.06976964]
[1750822407722,4.88746378,2457.6,2457.2,4.06967085]
[1750822408510,4.88746378,2457.6,2457.1,4.06978147]
[1750822408709,4.06921358,2457.5,2457.0,4.06991773]
[1750822408957,0.7683,2457.3,2457.0,4.06999609]
[1750822411035,0.7683,2457.3,2457.0,0.81403033]
[1750822411239,0.7683,2457.3,2457.1,4.06974101]
[1750822413539,0.7683,2457.3,2457.2,4.06967279]
[1750822413726,0.7683,2457.3,2457.1,4.06974999]
[1750822414039,0.7647,2457.5,2457.3,4.0694175]
[1750822414242,0.7647,2457.5,2457.2,4.06959843]
[1750822415736,0.7647,2457.5,2457.1,4.06981986]
[1750822415940,0.7647,2457.5,2456.9,4.87403808]
[1750822416238,10.0,2457.7,2457.4,4.06926139]
[1750822416812,14.06886665,2457.7,2457.2,0.7572]
[1750822417023,14.06886665,2457.7,2457.2,4.06958661]
[1750822418517,14.0689314,2457.7,2457.2,4.06966375]
[1750822419542,8.19292565,2457.6,2457.0,4.06989305]
[1750822419747,8.19290308,2457.6,2457.1,4.06975049]
[1750822420045,4.06919264,2457.5,2457.1,4.06975049]
[1750822420243,4.06919264,2457.5,2457.0,4.06995173]
[1750822420618,4.06919264,2457.5,2457.1,4.06983578]
[1750822420821,8.19292287,2457.6,2457.1,4.06983578]
[1750822421845,0.7913,2457.6,2456.9,1.7]
[1750822422148,10.0,2457.7,2457.3,4.06940168]
[1750822422516,8.5713,2457.8,2457.6,4.06893282]
[1750822422863,0.7913,2458.1,2457.5,0.8062]
[1750822423061,0.7549,2458.6,2458.0,0.7859]
[1750822423234,0.7549,2458.6,2458.3,4.06777381]
[1750822423419,10.7549,2458.6,2458.4,4.06765715]
[1750822424052,0.7549,2458.6,2458.4,4.06765715]
[1750822424226,10.0,2458.6,2458.4,4.06765715]
[1750822424563,0.7549,2459.1,2458.7,4.06710027]
[1750822424860,0.7549,2459.1,2458.6,4.06731333]
[1750822424861,4.82144401,2459.1,2458.6,4.06731333]
[1750822425057,10.0,2459.0,2458.7,4.06709535]
[1750822425246,10.7549,2459.1,2458.7,4.06709535]
[1750822425450,0.7549,2459.1,2458.7,4.06709535]
[1750822425630,10.7549,2459.1,2458.5,4.06747119]
[1750822425961,0.7549,2459.1,2458.6,4.06719657]
[1750822426253,14.82144374,2459.1,2458.5,4.0674598]
[1750822426435,11.89743861,2459.1,2458.4,1.7]
[1750822426637,15.96398533,2459.1,2458.6,4.06729709]
[1750822426965,15.96398533,2459.1,2458.5,4.06743375]
[1750822427426,4.06673323,2459.0,2458.4,5.76755796]
[1750822427866,4.06689378,2458.9,2458.4,5.76755796]
[1750822428031,4.06689378,2458.9,2458.4,1.7]
[1750822428226,0.7803,2458.8,2458.4,1.7]
[1750822428426,0.7803,2458.8,2458.0,0.8214]
[1750822428649,4.06724951,2458.7,2458.2,4.06801213]
[1750822429149,10.66924951,2458.7,2458.2,4.06801213]
[1750822429356,4.06737534,2458.6,2458.2,1.0656745]
[1750822429756,10.66926397,2458.7,2458.2,5.13365939]
[1750822430960,6.602,2458.7,2458.3,4.06784883]
[1750822431143,6.602,2458.7,2458.4,4.06757151]
[1750822431325,10.7803,2458.8,2458.4,1.71290948]
[1750822431533,10.0,2458.8,2458.6,4.06722556]
[1750822431727,0.7515,2459.0,2458.7,4.06708699]
[1750822431932,0.7515,2459.0,2458.7,0.81346078]
[1750822432132,0.7515,2459.0,2458.6,4.06727179]
[1750822432866,0.7515,2459.0,2458.7,4.06717015]
[1750822434257,10.0,2459.1,2458.7,4.06717015]
[1750822434441,10.0,2459.1,2458.7,4.06707001]
[1750822436068,10.0,2459.1,2458.6,4.0672791]
[1750822436274,14.06657595,2459.1,2458.6,4.0672791]
[1750822436866,14.06657595,2459.1,2458.4,5.78053788]
[1750822436867,4.83491254,2458.9,2458.4,4.86036797]
[1750822437046,0.7679,2458.9,2458.5,4.06749704]
[1750822437555,0.7679,2458.9,2458.6,4.0672208]
[1750822437930,0.7679,2458.9,2458.5,4.06740628]
[1750822439033,0.7679,2458.9,2458.6,4.06734072]
[1750822439242,0.7679,2458.9,2458.5,4.06743579]
[1750822441917,0.7679,2458.9,2458.6,4.06734197]
[1750822442889,0.7679,2458.9,2458.5,4.06744161]
[1750822444009,0.7679,2458.9,2458.6,4.06730932]
[1750822444216,17.4128,2459.1,2458.7,4.06717501]
[1750822444678,17.4128,2459.1,2458.4,0.7928]
[1750822444679,17.4128,2459.1,2458.4,4.86042475]
[1750822444881,4.06673053,2459.0,2458.5,4.06744891]
[1750822446981,21.47940863,2459.1,2458.6,4.067315]
[1750822447301,24.03399156,2459.1,2458.6,4.067315]
[1750822447504,4.06669402,2459.0,2458.6,4.067315]
[1750822447674,0.8236,2458.9,2458.5,4.06743826]
[1750822448366,4.89046729,2458.9,2458.4,4.06761008]
[1750822448897,0.8236,2458.9,2458.1,4.06817455]
[1750822449079,0.8236,2458.9,2458.6,4.06727201]
[1750822449479,0.8236,2458.9,2458.5,4.06743004]
[1750822449799,0.8236,2458.9,2458.6,4.0673443]
[1750822450500,0.8236,2458.9,2458.5,4.06742842]
[1750822451900,4.89049378,2458.9,2458.4,4.06759292]
[1750822452272,7.44651351,2458.9,2458.3,4.06778136]
[1750822452478,0.8226,2458.7,2458.3,4.06776903]
[1750822452666,0.8226,2458.7,2458.4,4.06766234]
[1750822453399,0.8226,2458.7,2458.5,4.06750676]
[1750822453800,0.8226,2458.7,2458.4,4.06761053]
[1750822454796,0.8226,2458.7,2458.5,4.06745904]
[1750822456580,0.832,2459.0,2458.5,0.81350696]
[1750822456891,0.832,2459.0,2458.7,4.06706818]
[1750822457605,0.832,2459.0,2458.5,0.81350696]
[1750822457811,4.89877666,2459.0,2458.5,4.88095743]
[1750822458591,0.832,2459.0,2458.6,4.06733831]
[1750822459114,3.39040124,2459.0,2458.5,4.06749751]
[1750822459282,4.0668614,2458.9,2458.5,4.06749751]
[1750822459610,7.45717455,2459.0,2458.5,4.06749751]
[1750822460409,0.832,2459.0,2458.2,4.8601899]
[1750822460878,0.832,2459.0,2458.7,4.06713067]
[1750822462209,14.06655063,2459.1,2458.6,4.84209057]
[1750822462412,14.06655063,2459.1,2458.6,4.06729057]
[1750822462991,4.06675458,2459.0,2458.5,4.06746411]
[1750822464078,4.82063326,2458.9,2458.4,4.06754122]
[1750822464494,4.06703295,2458.8,2458.4,4.06754122]
[1750822464711,4.82064561,2458.9,2458.4,4.06754122]
[1750822466934,4.06703123,2458.8,2458.4,4.06754122]
[1750822467111,4.82065083,2458.9,2458.4,4.06754122]
[1750822467423,0.7537,2458.9,2458.5,4.06746633]
[1750822467608,4.82057111,2458.9,2458.5,4.06746633]
[1750822467809,4.82057111,2458.9,2458.4,4.06761069]
[1750822468729,4.82057111,2458.9,2458.3,4.06776793]
[1750822468730,4.06705377,2458.8,2458.3,4.06776793]
[1750822469230,4.82065408,2458.9,2458.3,4.06776793]
[1750822469829,4.82065408,2458.9,2458.4,4.06761474]
[1750822470043,0.7537,2458.9,2458.5,4.0675144]
[1750822472635,4.89988953,2458.7,2458.0,4.06834825]
[1750822472934,0.8326,2458.5,2458.1,4.06818274]
[1750822474205,0.8326,2458.5,2458.2,4.06800729]
[1750822475515,0.8326,2458.5,2458.0,0.7863]
[1750822475721,0.8326,2458.5,2458.4,4.0676863]
[1750822476042,0.7517,2458.7,2458.4,4.0676863]
[1750822476332,0.7517,2458.7,2458.4,4.0676771]
[1750822476538,0.7517,2458.7,2458.1,6.43252525]
[1750822476727,10.0,2458.8,2458.7,4.0671618]
[1750822477043,10.0,2459.0,2458.8,4.06702456]
[1750822477340,10.0,2459.0,2458.9,4.06685916]
[1750822477541,0.7887,2459.1,2458.9,4.06678754]
[1750822477743,0.7887,2459.1,2458.8,4.06696824]
[1750822479517,10.7887,2459.1,2458.7,4.06710088]
[1750822480116,14.85523473,2459.1,2458.7,4.06710088]
[1750822480421,16.74744485,2459.1,2458.6,4.06728014]
[1750822480828,12.68084664,2459.1,2458.7,4.0671859]
[1750822481011,16.74739221,2459.1,2458.6,4.06726272]
[1750822481616,12.68084664,2459.1,2458.7,4.06716005]
[1750822481917,19.31184664,2459.1,2458.7,4.06716005]
[1750822482324,19.31184664,2459.1,2458.6,4.06726272]
[1750822482535,17.4197,2459.1,2458.8,4.06701191]
[1750822483528,10.7887,2459.1,2458.7,4.06712869]
[1750822484543,10.7887,2459.1,2458.4,4.0676863]
[1750822484749,4.89547518,2459.0,2458.5,4.06749676]
[1750822484951,4.06677518,2459.0,2458.5,4.06749676]
[1750822485151,11.52757834,2458.9,2458.4,4.06761634]
[1750822486942,7.4607,2458.9,2458.5,4.06751397]
[1750822488454,7.4607,2458.9,2458.6,4.06734394]
[1750822489351,11.52757463,2458.9,2458.4,4.06758365]
[1750822489653,11.52757463,2458.9,2458.4,4.06766711]
[1750822492055,0.8271,2458.6,2458.3,4.06785094]
[1750822492554,0.8271,2458.8,2458.4,4.06766904]
[1750822493555,4.89412705,2458.8,2458.4,4.06766904]
[1750822493755,4.89412705,2458.8,2458.3,4.06779628]
[1750822493924,4.89412705,2458.8,2458.3,4.88136706]
[1750822495555,4.0671942,2458.7,2458.2,4.06794557]
[1750822496129,0.8244,2458.6,2458.2,4.06794557]
[1750822496563,4.89175664,2458.6,2458.2,4.06794557]
[1750822496762,6.627,2458.5,2458.0,1.717]
[1750822497061,4.8921971,2458.4,2458.0,1.717]
[1750822497267,0.8244,2458.4,2458.0,6.36380267]
[1750822498047,4.8920924,2458.4,2458.0,6.36380267]
[1750822498452,0.8244,2458.4,2458.0,6.36380267]
[1750822500570,0.8244,2458.4,2458.0,2.29554419]
[1750822500730,0.8244,2458.4,2458.2,4.06798425]
[1750822501232,0.8244,2458.4,2458.0,1.717]
[1750822501432,0.8244,2458.4,2458.0,5.78526454]
[1750822501662,0.8244,2458.4,2458.1,4.068177]
[1750822503166,0.8244,2458.4,2458.0,5.78525553]
[1750822503972,0.8244,2458.4,2458.1,4.06816098]
[1750822505164,4.89209047,2458.4,2458.0,1.717]
[1750822505556,0.7534,2458.2,2457.8,4.06861836]
[1750822505749,0.7534,2458.2,2457.7,4.06884485]
[1750822505935,0.7534,2458.2,2457.8,4.06853789]
[1750822506140,0.7534,2458.2,2457.6,1.717]
[1750822506374,4.06823059,2458.1,2457.7,4.06884246]
[1750822507136,0.7534,2458.2,2457.8,4.06864936]
[1750822507338,4.82143839,2458.2,2457.7,4.06874915]
[1750822508779,0.7534,2458.2,2457.8,4.06865992]
[1750822509139,4.06828204,2458.1,2457.7,0.98548577]
[1750822509883,4.06854354,2457.9,2457.4,4.90040273]
[1750822510065,4.06843829,2458.0,2457.5,4.0690683]
[1750822510469,4.06826334,2458.1,2457.6,4.06900962]
[1750822510669,4.06826334,2458.1,2457.6,4.96595085]
[1750822511776,4.06836127,2458.0,2457.6,0.89694123]
[1750822512149,4.06827433,2458.1,2457.6,4.96594542]
[1750822512578,4.06838838,2458.0,2457.6,0.89694123]
[1750822513086,4.06826879,2458.1,2457.6,4.96593353]
[1750822513250,14.82152263,2458.2,2457.7,4.06880494]
[1750822513885,14.82152263,2458.2,2457.6,4.96586113]
[1750822514249,10.7534,2458.2,2457.7,4.97220885]
[1750822514454,4.06818955,2458.1,2457.7,0.90350278]
[1750822514788,4.06818955,2458.1,2457.2,8.14252525]
[1750822514789,0.8224,2457.8,2456.8,0.769]
[1750822514966,4.89214862,2457.2,2456.7,4.07048009]
[1750822515186,4.89209615,2457.2,2456.7,4.07042219]
[1750822515494,4.89209615,2457.2,2456.8,0.48394222]
[1750822516380,4.89210799,2457.2,2456.8,0.48394222]
[1750822516700,4.07003695,2457.0,2456.6,0.769]
[1750822517477,0.8224,2457.2,2456.6,0.769]
[1750822517682,4.07035321,2456.8,2456.4,1.71]
[1750822518096,4.07050403,2456.7,2456.4,1.71]
[1750822518286,4.07039021,2456.8,2456.4,1.71]
[1750822518822,4.82549021,2456.8,2456.4,1.71]
[1750822519492,4.07050247,2456.7,2456.4,1.71]
[1750822520305,4.82551982,2456.8,2456.4,1.71]
[1750822520706,5.71508295,2456.8,2456.4,1.71]
[1750822521026,4.07052314,2456.7,2456.4,1.71]
[1750822521320,5.71507057,2456.8,2456.4,1.71]
[1750822521504,1.64466313,2456.8,2456.4,4.07091502]
[1750822521705,0.7551,2456.8,2456.4,4.07091502]
[1750822521897,10.0,2456.9,2456.4,4.070921]
[1750822522093,0.8194,2457.0,2456.7,4.07037959]
[1750822522293,0.8194,2457.0,2456.3,0.7891]
[1750822522294,10.8194,2457.0,2456.3,0.7891]
[1750822522537,1.08194,2456.9,2456.3,4.86020952]
[1750822522712,4.07052408,2456.7,2456.3,0.7891]
[1750822522917,4.07052408,2456.7,2456.2,4.07128852]
[1750822523119,4.07052408,2456.7,2456.2,4.07127684]
[1750822523295,4.07040566,2456.8,2456.3,4.0711518]
[1750822524532,4.07052275,2456.7,2456.2,4.07126278]
[1750822525127,0.7713,2456.6,2456.4,4.07092391]
[1750822525303,0.7713,2456.8,2456.4,4.07092391]
[1750822526411,0.7713,2456.8,2456.5,4.07083029]
[1750822527211,10.69009288,2457.0,2456.5,4.07083029]
[1750822527212,11.44989288,2457.0,2456.5,4.07083029]
[1750822527421,10.0,2456.9,2456.5,4.07083029]
[1750822529700,10.0,2456.9,2456.4,4.07093999]
[1750822529905,0.7682,2456.8,2456.3,4.07106094]
[1750822530111,4.07073956,2456.6,2456.1,4.88965838]
[1750822530318,0.7682,2456.5,2456.2,4.07130672]
[1750822531939,0.7682,2456.5,2456.1,4.07140783]
[1750822532437,4.8390706,2456.5,2456.0,4.07157744]
[1750822532641,0.7682,2456.5,2456.1,4.07148661]